[Event "Live Chess"]
[Site "Chess.com"]
[Date "2024.06.02"]
[Round "-"]
[White "cymbalshift"]
[Black "TigerTank70"]
[Result "0-1"]
[WhiteElo "1717"]
[BlackElo "2238"]
[TimeControl "300"]
[EndTime "16:19:23 PDT"]
[Termination "TigerTank70 won on time"]

1. d4 {[%clk 0:04:57.8]} 1... d5 {[%clk 0:04:59]} 2. e4 {[%clk 0:04:56.9]} 2...
dxe4 {[%clk 0:04:56.9]} 3. Nc3 {[%clk 0:04:56.4]} 3... e5 {[%clk 0:04:53.5]} 4.
Be3 {[%clk 0:04:44.5]} 4... exd4 {[%clk 0:04:49.3]} 5. Bxd4 {[%clk 0:04:43.4]}
5... Nf6 {[%clk 0:04:46.2]} 6. Bc4 {[%clk 0:04:28.1]} 6... Nc6 {[%clk
0:04:37.1]} 7. Bxf6 {[%clk 0:04:15.8]} 7... Qxf6 {[%clk 0:04:37]} 8. Nd5 {[%clk
0:04:06.8]} 8... Qd6 {[%clk 0:04:32.1]} 9. Qe2 {[%clk 0:03:44.1]} 9... Be6
{[%clk 0:04:28.7]} 10. O-O-O {[%clk 0:03:39.5]} 10... Bxd5 {[%clk 0:04:22.4]}
11. Rxd5 {[%clk 0:03:34.8]} 11... Qh6+ {[%clk 0:04:19.3]} 12. Kb1 {[%clk
0:03:29.4]} 12... Qg6 {[%clk 0:04:09.6]} 13. Nf3 {[%clk 0:03:12]} 13... Be7
{[%clk 0:04:02]} 14. Ne5 {[%clk 0:02:54.2]} 14... Qxg2 {[%clk 0:03:52.1]} 15.
Rhd1 {[%clk 0:02:41.4]} 15... O-O {[%clk 0:03:49.6]} 16. Nxc6 {[%clk 0:02:37.3]}
16... bxc6 {[%clk 0:03:49.5]} 17. Rd7 {[%clk 0:02:36.2]} 17... Bd6 {[%clk
0:03:43.8]} 18. Qe3 {[%clk 0:02:08.2]} 18... Qg4 {[%clk 0:03:33.7]} 19. R1xd6
{[%clk 0:01:26.1]} 19... cxd6 {[%clk 0:03:33.6]} 20. Rxd6 {[%clk 0:01:25.5]}
20... Qg1+ {[%clk 0:03:27]} 21. Qc1 {[%clk 0:01:21.3]} 21... Qxf2 {[%clk
0:03:25.9]} 22. Rd7 {[%clk 0:01:13.8]} 22... e3 {[%clk 0:03:24.2]} 23. Qd1
{[%clk 0:01:05.1]} 23... Rae8 {[%clk 0:03:20.2]} 24. Rxf7 {[%clk 0:00:06.7]}
24... Rxf7 {[%clk 0:03:15.9]} 25. Bxf7+ {[%clk 0:00:05.1]} 25... Qxf7 {[%clk
0:03:13.3]} 26. Qe2 {[%clk 0:00:03.2]} 26... Qf2 {[%clk 0:03:08.8]} 27. Qc4+
{[%clk 0:00:02.7]} 27... Kh8 {[%clk 0:03:07.2]} 0-1

[Event "Live Chess"]
[Site "Chess.com"]
[Date "2024.06.02"]
[Round "-"]
[White "GwaryTek"]
[Black "ShanthamGrarks"]
[Result "0-1"]
[WhiteElo "1888"]
[BlackElo "1830"]
[TimeControl "300"]
[EndTime "16:19:34 PDT"]
[Termination "ShanthamGrarks won on time"]

1. d4 {[%clk 0:04:57.4]} 1... e6 {[%clk 0:04:53]} 2. Nf3 {[%clk 0:04:51.4]} 2...
Nf6 {[%clk 0:04:51.8]} 3. c4 {[%clk 0:04:50]} 3... d5 {[%clk 0:04:51.3]} 4. Nc3
{[%clk 0:04:49.6]} 4... c6 {[%clk 0:04:50.4]} 5. Bg5 {[%clk 0:04:47.8]} 5...
Nbd7 {[%clk 0:04:49.8]} 6. e3 {[%clk 0:04:43]} 6... Qa5 {[%clk 0:04:49.2]} 7.
Bxf6 {[%clk 0:04:36.9]} 7... Nxf6 {[%clk 0:04:47.2]} 8. Bd3 {[%clk 0:04:34.1]}
8... Bb4 {[%clk 0:04:42]} 9. Qc2 {[%clk 0:04:32.5]} 9... dxc4 {[%clk 0:04:34]}
10. Bxc4 {[%clk 0:04:31.4]} 10... Ne4 {[%clk 0:04:32.6]} 11. Rc1 {[%clk
0:04:28.3]} 11... Nxc3 {[%clk 0:04:23.4]} 12. bxc3 {[%clk 0:04:26.5]} 12... Ba3
{[%clk 0:04:20.6]} 13. Rb1 {[%clk 0:04:21.8]} 13... O-O {[%clk 0:04:16.3]} 14.
O-O {[%clk 0:04:19.7]} 14... b5 {[%clk 0:04:10.5]} 15. Bd3 {[%clk 0:04:16.8]}
15... g6 {[%clk 0:04:10]} 16. Ne5 {[%clk 0:04:15.2]} 16... Qc7 {[%clk
0:03:59.5]} 17. f4 {[%clk 0:04:12.2]} 17... Bd6 {[%clk 0:03:58.2]} 18. h4 {[%clk
0:04:10.2]} 18... Bxe5 {[%clk 0:03:57.2]} 19. fxe5 {[%clk 0:04:09.8]} 19... c5
{[%clk 0:03:55.8]} 20. Rxb5 {[%clk 0:03:55.2]} 20... cxd4 {[%clk 0:03:49.7]} 21.
cxd4 {[%clk 0:03:49]} 21... Qxc2 {[%clk 0:03:48]} 22. Bxc2 {[%clk 0:03:47.6]}
22... Ba6 {[%clk 0:03:47.6]} 23. a4 {[%clk 0:03:22.2]} 23... Bxb5 {[%clk
0:03:44.2]} 24. axb5 {[%clk 0:03:20.9]} 24... a6 {[%clk 0:03:43.4]} 25. Be4
{[%clk 0:03:11.4]} 25... Ra7 {[%clk 0:03:29]} 26. b6 {[%clk 0:03:03.7]} 26...
Re7 {[%clk 0:03:27.1]} 27. Ra1 {[%clk 0:02:27.3]} 27... Rb8 {[%clk 0:03:20.5]}
28. Rxa6 {[%clk 0:02:24.3]} 28... Kg7 {[%clk 0:03:18]} 29. Kf2 {[%clk
0:01:27.8]} 29... h5 {[%clk 0:03:11.8]} 30. Kg3 {[%clk 0:01:22]} 30... f6 {[%clk
0:03:08]} 31. Ra7 {[%clk 0:00:37.7]} 31... Rf7 {[%clk 0:03:05.8]} 32. exf6+
{[%clk 0:00:20.6]} 32... Kxf6 {[%clk 0:03:03.8]} 33. Rxf7+ {[%clk 0:00:17.2]}
33... Kxf7 {[%clk 0:03:02.5]} 34. b7 {[%clk 0:00:17.1]} 34... Kf6 {[%clk
0:02:57.5]} 35. Kf4 {[%clk 0:00:17]} 35... Ke7 {[%clk 0:02:46.6]} 36. g4 {[%clk
0:00:15.7]} 36... hxg4 {[%clk 0:02:44]} 37. Kxg4 {[%clk 0:00:15]} 37... Kf6
{[%clk 0:02:42.8]} 38. Kf4 {[%clk 0:00:13.9]} 38... Rh8 {[%clk 0:02:41.2]} 39.
Kg3 {[%clk 0:00:10.7]} 39... Rf8 {[%clk 0:02:37.7]} 40. Kg4 {[%clk 0:00:09.3]}
40... Kg7 {[%clk 0:02:34.5]} 41. Bc6 {[%clk 0:00:07.9]} 41... Rb8 {[%clk
0:02:32.4]} 42. Kg5 {[%clk 0:00:05.5]} 42... Kf7 {[%clk 0:02:31.4]} 43. e4
{[%clk 0:00:04]} 43... Kg7 {[%clk 0:02:29.6]} 44. d5 {[%clk 0:00:03.4]} 44...
exd5 {[%clk 0:02:28.3]} 45. exd5 {[%clk 0:00:03.3]} 45... Rf8 {[%clk 0:02:22.5]}
46. Bd7 {[%clk 0:00:01.1]} 46... Rb8 {[%clk 0:02:19.6]} 47. Bc8 {[%clk
0:00:00.4]} 47... Kf7 {[%clk 0:02:18.4]} 48. d6 {[%clk 0:00:00.3]} 48... Ke8
{[%clk 0:02:16]} 0-1

[Event "Live Chess"]
[Site "Chess.com"]
[Date "2024.06.02"]
[Round "-"]
[White "EPotapov05"]
[Black "jk0110"]
[Result "1-0"]
[WhiteElo "1805"]
[BlackElo "1224"]
[TimeControl "300"]
[EndTime "16:20:26 PDT"]
[Termination "EPotapov05 won by resignation"]

1. d4 {[%clk 0:04:55.7]} 1... Nf6 {[%clk 0:04:57.8]} 2. c4 {[%clk 0:04:54.7]}
2... e5 {[%clk 0:04:56.8]} 3. dxe5 {[%clk 0:04:53.3]} 3... Ne4 {[%clk
0:04:55.6]} 4. Nd2 {[%clk 0:04:48.9]} 4... Bb4 {[%clk 0:04:51.7]} 5. a3 {[%clk
0:04:45.8]} 5... Bxd2+ {[%clk 0:04:48.9]} 6. Bxd2 {[%clk 0:04:44.6]} 6... Nxd2
{[%clk 0:04:47.8]} 7. Qxd2 {[%clk 0:04:43.1]} 7... O-O {[%clk 0:04:42.3]} 8. f4
{[%clk 0:04:37.9]} 8... Nc6 {[%clk 0:04:29]} 9. Nf3 {[%clk 0:04:36.6]} 9... d6
{[%clk 0:04:13.4]} 10. exd6 {[%clk 0:04:33.1]} 10... cxd6 {[%clk 0:04:12]} 11.
e3 {[%clk 0:04:31]} 11... Bg4 {[%clk 0:04:08.6]} 12. Be2 {[%clk 0:04:29.5]}
12... Qf6 {[%clk 0:03:52.3]} 13. O-O {[%clk 0:04:26.1]} 13... Qg6 {[%clk
0:03:31.4]} 14. Nd4 {[%clk 0:04:11.4]} 14... Rfe8 {[%clk 0:02:44.6]} 15. Bxg4
{[%clk 0:04:05.8]} 15... Nxd4 {[%clk 0:02:33.4]} 16. Qxd4 {[%clk 0:03:59]} 16...
Qxg4 {[%clk 0:02:30.5]} 17. Rae1 {[%clk 0:03:57.2]} 17... Re6 {[%clk 0:02:22.6]}
18. Qd5 {[%clk 0:03:48.1]} 18... Rae8 {[%clk 0:02:17.5]} 19. Qxb7 {[%clk
0:03:29.3]} 19... h5 {[%clk 0:02:05.8]} 20. Qxa7 {[%clk 0:03:25.4]} 20... Rxe3
{[%clk 0:01:58.5]} 21. Rxe3 {[%clk 0:03:19.4]} 21... Rxe3 {[%clk 0:01:51.7]} 22.
Qxe3 {[%clk 0:03:17.9]} 22... h4 {[%clk 0:01:50]} 23. h3 {[%clk 0:03:13.2]}
23... Qf5 {[%clk 0:01:42.2]} 1-0

[Event "Live Chess"]
[Site "Chess.com"]
[Date "2024.06.02"]
[Round "-"]
[White "IgorSchukin"]
[Black "gmnorfolk"]
[Result "0-1"]
[WhiteElo "1735"]
[BlackElo "2137"]
[TimeControl "300"]
[EndTime "16:20:48 PDT"]
[Termination "gmnorfolk won by checkmate"]

1. e4 {[%clk 0:04:58.2]} 1... c5 {[%clk 0:04:52.7]} 2. a3 {[%clk 0:04:55.6]}
2... g6 {[%clk 0:04:48.3]} 3. Nc3 {[%clk 0:04:54]} 3... Bg7 {[%clk 0:04:47.8]}
4. Bc4 {[%clk 0:04:52.6]} 4... Nc6 {[%clk 0:04:47.3]} 5. d3 {[%clk 0:04:51.8]}
5... e6 {[%clk 0:04:46.3]} 6. Nf3 {[%clk 0:04:51]} 6... Nge7 {[%clk 0:04:45.7]}
7. Bg5 {[%clk 0:04:49.6]} 7... f6 {[%clk 0:04:42.9]} 8. Bh4 {[%clk 0:04:47.9]}
8... d5 {[%clk 0:04:42.8]} 9. Ba2 {[%clk 0:04:46.1]} 9... O-O {[%clk 0:04:40.7]}
10. O-O {[%clk 0:04:44.6]} 10... b6 {[%clk 0:04:38.9]} 11. Qd2 {[%clk
0:04:41.4]} 11... Kh8 {[%clk 0:04:37.5]} 12. Rad1 {[%clk 0:04:38.9]} 12... Bb7
{[%clk 0:04:35.5]} 13. h3 {[%clk 0:04:32.4]} 13... Rc8 {[%clk 0:04:33.1]} 14.
exd5 {[%clk 0:04:24.3]} 14... exd5 {[%clk 0:04:31.4]} 15. Ne2 {[%clk 0:04:21.8]}
15... g5 {[%clk 0:04:27.3]} 16. Bg3 {[%clk 0:04:05.6]} 16... Nf5 {[%clk
0:04:26.8]} 17. c3 {[%clk 0:04:01.3]} 17... Nxg3 {[%clk 0:04:22.8]} 18. Nxg3
{[%clk 0:03:59.4]} 18... Qd7 {[%clk 0:04:19.8]} 19. Nh5 {[%clk 0:03:56.4]} 19...
Rce8 {[%clk 0:04:16.4]} 20. Nxg7 {[%clk 0:03:55]} 20... Kxg7 {[%clk 0:04:15.2]}
21. d4 {[%clk 0:03:50.8]} 21... c4 {[%clk 0:04:12.7]} 22. Bb1 {[%clk 0:03:48.9]}
22... g4 {[%clk 0:04:04.7]} 23. hxg4 {[%clk 0:03:37.5]} 23... Qxg4 {[%clk
0:04:02.7]} 24. Nh2 {[%clk 0:03:30.5]} 24... Qe2 {[%clk 0:03:56.8]} 25. Qf4
{[%clk 0:03:24.9]} 25... Qh5 {[%clk 0:03:50]} 26. Rde1 {[%clk 0:03:12.2]} 26...
Kh8 {[%clk 0:03:46.2]} 27. Ng4 {[%clk 0:03:06.3]} 27... Rxe1 {[%clk 0:03:36.7]}
28. Rxe1 {[%clk 0:03:04]} 28... Qf7 {[%clk 0:03:34.8]} 29. Qh6 {[%clk
0:02:40.2]} 29... Qg7 {[%clk 0:03:19.4]} 30. Qh4 {[%clk 0:02:29.8]} 30... Bc8
{[%clk 0:03:12.2]} 31. Nh6 {[%clk 0:02:21.7]} 31... Ne7 {[%clk 0:03:03.3]} 32.
Re3 {[%clk 0:02:04.2]} 32... Ng6 {[%clk 0:02:55.9]} 33. Qh2 {[%clk 0:01:44.8]}
33... f5 {[%clk 0:02:52.2]} 34. Rf3 {[%clk 0:01:20.3]} 34... f4 {[%clk
0:02:46.2]} 35. Bxg6 {[%clk 0:01:09.1]} 35... Qxg6 {[%clk 0:02:42.9]} 36. Rxf4
{[%clk 0:01:06.5]} 36... Qb1# {[%clk 0:02:39.3]} 0-1

[Event "Live Chess"]
[Site "Chess.com"]
[Date "2024.06.02"]
[Round "-"]
[White "upoe610"]
[Black "ACM42"]
[Result "0-1"]
[WhiteElo "2188"]
[BlackElo "2175"]
[TimeControl "300"]
[EndTime "16:21:00 PDT"]
[Termination "ACM42 won by checkmate"]

1. c4 {[%clk 0:04:55]} 1... g6 {[%clk 0:04:56.7]} 2. g3 {[%clk 0:04:53.4]} 2...
Bg7 {[%clk 0:04:54.5]} 3. Bg2 {[%clk 0:04:51.7]} 3... c5 {[%clk 0:04:53.6]} 4.
Nc3 {[%clk 0:04:50]} 4... Nf6 {[%clk 0:04:53]} 5. Nf3 {[%clk 0:04:48.3]} 5...
O-O {[%clk 0:04:52.4]} 6. O-O {[%clk 0:04:45.9]} 6... Nc6 {[%clk 0:04:51.7]} 7.
d4 {[%clk 0:04:45.1]} 7... d6 {[%clk 0:04:50.8]} 8. dxc5 {[%clk 0:04:37.5]} 8...
dxc5 {[%clk 0:04:49.8]} 9. Qxd8 {[%clk 0:04:36.5]} 9... Rxd8 {[%clk 0:04:49.7]}
10. Bg5 {[%clk 0:04:36]} 10... Be6 {[%clk 0:04:45.1]} 11. b3 {[%clk 0:04:30.7]}
11... h6 {[%clk 0:04:36.5]} 12. Bxf6 {[%clk 0:04:28.6]} 12... Bxf6 {[%clk
0:04:36.4]} 13. Rac1 {[%clk 0:04:28.5]} 13... b6 {[%clk 0:04:18.1]} 14. e4
{[%clk 0:03:54.6]} 14... Nd4 {[%clk 0:03:47.4]} 15. Nxd4 {[%clk 0:03:51.6]}
15... Bxd4 {[%clk 0:03:44.5]} 16. Nd5 {[%clk 0:03:50.7]} 16... Rd7 {[%clk
0:03:27.5]} 17. Rfd1 {[%clk 0:03:43.5]} 17... Rc8 {[%clk 0:03:24.1]} 18. Kf1
{[%clk 0:03:40.6]} 18... f5 {[%clk 0:03:20.9]} 19. f3 {[%clk 0:03:23.9]} 19...
fxe4 {[%clk 0:03:16.7]} 20. fxe4 {[%clk 0:03:23.8]} 20... Bg4 {[%clk 0:03:15.6]}
21. Rd3 {[%clk 0:03:15.2]} 21... Rf8+ {[%clk 0:03:09.3]} 22. Ke1 {[%clk
0:03:12.8]} 22... Rf2 {[%clk 0:02:54.3]} 23. Bf1 {[%clk 0:03:09.3]} 23... Rxa2
{[%clk 0:02:49.9]} 24. b4 {[%clk 0:03:06.5]} 24... Bf2# {[%clk 0:02:48.1]} 0-1

[Event "Live Chess"]
[Site "Chess.com"]
[Date "2024.06.02"]
[Round "-"]
[White "grillage"]
[Black "wadsy27"]
[Result "0-1"]
[WhiteElo "1853"]
[BlackElo "2569"]
[TimeControl "300"]
[EndTime "16:21:14 PDT"]
[Termination "wadsy27 won on time"]

1. d4 {[%clk 0:04:55.8]} 1... Nf6 {[%clk 0:04:53.7]} 2. Nf3 {[%clk 0:04:55.1]}
2... c5 {[%clk 0:04:53]} 3. d5 {[%clk 0:04:51.8]} 3... e6 {[%clk 0:04:51.3]} 4.
Nc3 {[%clk 0:04:49.1]} 4... d6 {[%clk 0:04:48.4]} 5. e4 {[%clk 0:04:47.6]} 5...
exd5 {[%clk 0:04:36.8]} 6. exd5 {[%clk 0:04:44.2]} 6... Be7 {[%clk 0:04:35.8]}
7. Bb5+ {[%clk 0:04:40.9]} 7... Bd7 {[%clk 0:04:33.5]} 8. a4 {[%clk 0:04:40]}
8... O-O {[%clk 0:04:28.6]} 9. O-O {[%clk 0:04:38.3]} 9... Na6 {[%clk
0:04:27.1]} 10. Re1 {[%clk 0:04:10.9]} 10... Nc7 {[%clk 0:04:25.3]} 11. Bc4
{[%clk 0:04:09]} 11... b6 {[%clk 0:04:21.7]} 12. Bf4 {[%clk 0:04:04.4]} 12...
Re8 {[%clk 0:04:20.4]} 13. h3 {[%clk 0:04:02]} 13... a6 {[%clk 0:04:19.6]} 14.
Bf1 {[%clk 0:03:56.7]} 14... Bf8 {[%clk 0:04:16.4]} 15. Bh2 {[%clk 0:03:52.9]}
15... b5 {[%clk 0:04:12]} 16. axb5 {[%clk 0:03:49.7]} 16... axb5 {[%clk
0:04:11.9]} 17. Qd2 {[%clk 0:03:40.1]} 17... b4 {[%clk 0:04:06.4]} 18. Rxa8
{[%clk 0:03:24.6]} 18... Qxa8 {[%clk 0:04:05]} 19. Rxe8 {[%clk 0:03:11.5]} 19...
Qxe8 {[%clk 0:04:03.5]} 20. Nd1 {[%clk 0:02:58.3]} 20... Ncxd5 {[%clk
0:03:57.5]} 21. Bc4 {[%clk 0:02:52.5]} 21... Bc6 {[%clk 0:03:49.6]} 22. b3
{[%clk 0:02:47]} 22... Qa8 {[%clk 0:03:44.8]} 23. Qd3 {[%clk 0:02:23.8]} 23...
h6 {[%clk 0:03:43.3]} 24. Ne3 {[%clk 0:02:19.7]} 24... Nxe3 {[%clk 0:03:41.6]}
25. Qxe3 {[%clk 0:02:18.5]} 25... Bxf3 {[%clk 0:03:39.8]} 26. gxf3 {[%clk
0:02:16.4]} 26... d5 {[%clk 0:03:36.3]} 27. Bd3 {[%clk 0:02:11.1]} 27... d4
{[%clk 0:03:35.1]} 28. Qf4 {[%clk 0:02:05.6]} 28... Qd5 {[%clk 0:03:10.5]} 29.
Kg2 {[%clk 0:01:47.6]} 29... Qg5+ {[%clk 0:03:01.8]} 30. Qg3 {[%clk 0:01:41.9]}
30... Nd5 {[%clk 0:02:54.3]} 31. Kf1 {[%clk 0:01:34.8]} 31... Qxg3 {[%clk
0:02:47.1]} 32. fxg3 {[%clk 0:01:33.5]} 32... Bd6 {[%clk 0:02:45.7]} 33. f4
{[%clk 0:01:30.4]} 33... f5 {[%clk 0:02:38.8]} 34. Ke2 {[%clk 0:01:27.5]} 34...
Ne7 {[%clk 0:02:31.7]} 35. Kf3 {[%clk 0:01:24.2]} 35... Kf7 {[%clk 0:02:30.5]}
36. g4 {[%clk 0:01:22.7]} 36... g6 {[%clk 0:02:29.7]} 37. Bg3 {[%clk 0:01:16.6]}
37... Ke6 {[%clk 0:02:19.7]} 38. Bc4+ {[%clk 0:01:15.6]} 38... Nd5 {[%clk
0:02:18.6]} 39. gxf5+ {[%clk 0:01:07.6]} 39... gxf5 {[%clk 0:02:17.5]} 40. h4
{[%clk 0:00:59.3]} 40... h5 {[%clk 0:02:14.8]} 41. Bh2 {[%clk 0:00:56.4]} 41...
Be7 {[%clk 0:02:13.9]} 42. Bg3 {[%clk 0:00:54.8]} 42... Kd6 {[%clk 0:02:13.2]}
43. Bd3 {[%clk 0:00:49]} 43... Ne3 {[%clk 0:02:09.1]} 44. Bf2 {[%clk 0:00:44.8]}
44... Ng4 {[%clk 0:01:56]} 45. Bxf5 {[%clk 0:00:37.1]} 45... Nxf2 {[%clk
0:01:54.8]} 46. Kxf2 {[%clk 0:00:34.9]} 46... c4 {[%clk 0:01:54]} 47. bxc4
{[%clk 0:00:29.4]} 47... Bxh4+ {[%clk 0:01:52.6]} 48. Kf3 {[%clk 0:00:24.8]}
48... Kc5 {[%clk 0:01:50.9]} 49. Bd3 {[%clk 0:00:23.6]} 49... Bf6 {[%clk
0:01:47.7]} 50. Kg3 {[%clk 0:00:19.3]} 50... h4+ {[%clk 0:01:46.6]} 51. Kh3
{[%clk 0:00:18.2]} 51... Kb6 {[%clk 0:01:45.4]} 52. Be2 {[%clk 0:00:17.1]} 52...
Ka5 {[%clk 0:01:44]} 53. Bd3 {[%clk 0:00:16.6]} 53... Ka4 {[%clk 0:01:43.1]} 54.
Kh2 {[%clk 0:00:15.2]} 54... Ka3 {[%clk 0:01:25.4]} 55. Kg2 {[%clk 0:00:14]}
55... Kb2 {[%clk 0:01:24.7]} 56. Kf2 {[%clk 0:00:11.6]} 56... Kc3 {[%clk
0:01:23.7]} 57. Ke2 {[%clk 0:00:07.3]} 57... h3 {[%clk 0:01:22]} 58. c5 {[%clk
0:00:05.5]} 58... h2 {[%clk 0:01:19.3]} 59. Be4 {[%clk 0:00:04.8]} 59... d3+
{[%clk 0:01:16]} 60. cxd3 {[%clk 0:00:01.3]} 60... b3 {[%clk 0:01:15.4]} 0-1

[Event "Live Chess"]
[Site "Chess.com"]
[Date "2024.06.02"]
[Round "-"]
[White "vincents82"]
[Black "Cruiseylee78"]
[Result "0-1"]
[WhiteElo "2028"]
[BlackElo "1706"]
[TimeControl "300"]
[EndTime "16:21:37 PDT"]
[Termination "Cruiseylee78 won by resignation"]

1. e4 {[%clk 0:04:58.3]} 1... d6 {[%clk 0:04:55]} 2. d4 {[%clk 0:04:55.9]} 2...
Nd7 {[%clk 0:04:54.7]} 3. Nc3 {[%clk 0:04:55.2]} 3... e5 {[%clk 0:04:53]} 4. Be3
{[%clk 0:04:54.5]} 4... Ngf6 {[%clk 0:04:51.4]} 5. Nf3 {[%clk 0:04:52.1]} 5...
c6 {[%clk 0:04:50.7]} 6. h3 {[%clk 0:04:50.7]} 6... h6 {[%clk 0:04:49.4]} 7. Bc4
{[%clk 0:04:49.8]} 7... Be7 {[%clk 0:04:48.7]} 8. Qd2 {[%clk 0:04:49.1]} 8...
Qc7 {[%clk 0:04:48]} 9. O-O {[%clk 0:04:48.2]} 9... g5 {[%clk 0:04:46.3]} 10.
Nh2 {[%clk 0:04:36.4]} 10... Rg8 {[%clk 0:04:40.9]} 11. Ng4 {[%clk 0:04:34.7]}
11... Nxg4 {[%clk 0:04:39.9]} 12. hxg4 {[%clk 0:04:33.8]} 12... Nb6 {[%clk
0:04:38.6]} 13. Be2 {[%clk 0:04:31.6]} 13... Nd7 {[%clk 0:04:23.6]} 14. d5
{[%clk 0:04:28]} 14... Nf8 {[%clk 0:04:21.6]} 15. dxc6 {[%clk 0:04:24.2]} 15...
bxc6 {[%clk 0:04:21.5]} 16. Rad1 {[%clk 0:04:19.7]} 16... Ng6 {[%clk 0:04:20.4]}
17. g3 {[%clk 0:04:18]} 17... Bd7 {[%clk 0:04:13]} 18. a4 {[%clk 0:04:13.2]}
18... Qc8 {[%clk 0:04:11.6]} 19. b4 {[%clk 0:04:07.7]} 19... Bxg4 {[%clk
0:04:09.8]} 20. f3 {[%clk 0:04:06.2]} 20... Bh3 {[%clk 0:04:07]} 21. g4 {[%clk
0:04:05]} 21... Bxf1 {[%clk 0:04:05.3]} 22. Bxf1 {[%clk 0:04:04.5]} 22... Nf4
{[%clk 0:04:02.4]} 23. Bxf4 {[%clk 0:04:03.2]} 23... gxf4 {[%clk 0:04:01.3]} 24.
b5 {[%clk 0:04:01.7]} 24... h5 {[%clk 0:03:57.7]} 25. Bh3 {[%clk 0:04:00.9]}
25... hxg4 {[%clk 0:03:56.7]} 26. Bxg4 {[%clk 0:03:59]} 26... f5 {[%clk
0:03:44.9]} 27. exf5 {[%clk 0:03:54.5]} 27... Qxf5 {[%clk 0:03:43.8]} 28. bxc6
{[%clk 0:03:51.1]} 28... Rc8 {[%clk 0:03:32.7]} 29. Kf1 {[%clk 0:03:42.2]} 29...
Rxg4 {[%clk 0:03:13.2]} 30. fxg4 {[%clk 0:03:41.1]} 30... Qxg4 {[%clk
0:03:12.1]} 31. Qd5 {[%clk 0:03:28]} 31... f3 {[%clk 0:02:58.7]} 32. Kf2 {[%clk
0:02:57]} 32... Qg2+ {[%clk 0:02:56.1]} 33. Ke3 {[%clk 0:02:56.1]} 33... Bg5+
{[%clk 0:02:53]} 34. Kd3 {[%clk 0:02:54.6]} 34... Ke7 {[%clk 0:02:42.5]} 35. Qe4
{[%clk 0:02:32.5]} 35... Qh3 {[%clk 0:01:13.9]} 36. Kc4 {[%clk 0:02:20.4]} 36...
f2 {[%clk 0:01:10.2]} 37. Nd5+ {[%clk 0:02:13.8]} 37... Kd8 {[%clk 0:01:04.3]}
38. Nb4 {[%clk 0:00:58.4]} 38... f1=Q+ {[%clk 0:00:58.2]} 39. Rxf1 {[%clk
0:00:57.1]} 39... Qxf1+ {[%clk 0:00:53.6]} 40. Nd3 {[%clk 0:00:56.3]} 40... Qb1
{[%clk 0:00:49.6]} 41. Nb4 {[%clk 0:00:52.5]} 41... a5 {[%clk 0:00:45.2]} 42.
Qf5 {[%clk 0:00:43.3]} 42... Qxb4+ {[%clk 0:00:40.7]} 43. Kd5 {[%clk 0:00:41.8]}
43... Qd4+ {[%clk 0:00:33.7]} 44. Ke6 {[%clk 0:00:40.2]} 44... Qc4+ {[%clk
0:00:25.1]} 45. Kxd6 {[%clk 0:00:39.4]} 45... Rxc6+ {[%clk 0:00:21.7]} 46. Kxe5
{[%clk 0:00:35.1]} 46... Rc5+ {[%clk 0:00:18.3]} 0-1

[Event "Live Chess"]
[Site "Chess.com"]
[Date "2024.06.02"]
[Round "-"]
[White "hapehansen"]
[Black "Yegorych"]
[Result "1-0"]
[WhiteElo "2252"]
[BlackElo "1554"]
[TimeControl "300"]
[EndTime "16:21:46 PDT"]
[Termination "hapehansen won on time"]

1. c4 {[%clk 0:04:55.2]} 1... Nf6 {[%clk 0:04:55.4]} 2. Nc3 {[%clk 0:04:53.9]}
2... g6 {[%clk 0:04:53.7]} 3. g3 {[%clk 0:04:50.2]} 3... Bg7 {[%clk 0:04:50.3]}
4. Bg2 {[%clk 0:04:49.8]} 4... c6 {[%clk 0:04:45.3]} 5. e4 {[%clk 0:04:47.8]}
5... d5 {[%clk 0:04:32.5]} 6. cxd5 {[%clk 0:04:42.8]} 6... cxd5 {[%clk
0:04:32.4]} 7. e5 {[%clk 0:04:42]} 7... Ne4 {[%clk 0:04:27.5]} 8. d4 {[%clk
0:04:37.9]} 8... Nxc3 {[%clk 0:04:20.6]} 9. bxc3 {[%clk 0:04:35.9]} 9... Nc6
{[%clk 0:04:14.8]} 10. Ne2 {[%clk 0:04:32]} 10... Bg4 {[%clk 0:04:08.3]} 11. O-O
{[%clk 0:04:28.5]} 11... Qd7 {[%clk 0:03:59.9]} 12. f3 {[%clk 0:03:49.8]} 12...
Bh3 {[%clk 0:03:54.2]} 13. Bxh3 {[%clk 0:03:45.7]} 13... Qxh3 {[%clk 0:03:54.1]}
14. Rb1 {[%clk 0:03:44.7]} 14... Rb8 {[%clk 0:03:45]} 15. Qb3 {[%clk 0:03:31.7]}
15... Qd7 {[%clk 0:03:39.5]} 16. e6 {[%clk 0:03:17.3]} 16... fxe6 {[%clk
0:03:33.8]} 17. Nf4 {[%clk 0:03:11.9]} 17... O-O {[%clk 0:03:25.1]} 18. Re1
{[%clk 0:03:09.4]} 18... e5 {[%clk 0:03:13]} 19. Nxd5 {[%clk 0:02:56.5]} 19...
Kh8 {[%clk 0:03:09.2]} 20. Kg2 {[%clk 0:02:08.7]} 20... exd4 {[%clk 0:02:57.3]}
21. Nf4 {[%clk 0:01:44]} 21... e5 {[%clk 0:02:48.9]} 22. Ne6 {[%clk 0:01:40]}
22... Na5 {[%clk 0:02:15.5]} 23. Nxf8 {[%clk 0:01:32.9]} 23... Bxf8 {[%clk
0:01:59.9]} 24. Qb5 {[%clk 0:01:29.4]} 24... Qxb5 {[%clk 0:01:50.3]} 25. Rxb5
{[%clk 0:01:27.1]} 25... Nc6 {[%clk 0:01:43.9]} 26. cxd4 {[%clk 0:01:23.7]}
26... exd4 {[%clk 0:01:37.2]} 27. Bf4 {[%clk 0:01:20.7]} 27... Rd8 {[%clk
0:01:24]} 28. Rxb7 {[%clk 0:01:15]} 28... Bg7 {[%clk 0:00:44.5]} 29. Rc7 {[%clk
0:01:07.8]} 29... Nb4 {[%clk 0:00:32.9]} 30. Rxa7 {[%clk 0:01:04.8]} 30... d3
{[%clk 0:00:27.7]} 31. Bd2 {[%clk 0:01:00.3]} 31... Nd5 {[%clk 0:00:20.6]} 32.
a4 {[%clk 0:00:45]} 32... h5 {[%clk 0:00:11.4]} 33. a5 {[%clk 0:00:43]} 33...
Kh7 {[%clk 0:00:07.6]} 34. a6 {[%clk 0:00:38.9]} 1-0